[Event "*** Titled Tuesday 3|2 Blitz (Early)"]
[Site "Chess.com"]
[Date "2016.12.06"]
[Round "7"]
[White "pedromartinez91"]
[Black "VladDobrov"]
[Result "1-0"]
[WhiteElo "2352"]
[BlackElo "2589"]
[TimeControl "180+2"]
[EndTime "12:33:36 PST"]
[Termination "pedromartinez91 won by resignation"]

1. e4 {[%clk 0:02:13.6]} 1... c5 {[%clk 0:02:59.6]} 2. Nf3 {[%clk 0:02:14.6]}
2... d6 {[%clk 0:03:00.8]} 3. Bb5+ {[%clk 0:02:15.6]} 3... Bd7 {[%clk
0:02:58.2]} 4. Bxd7+ {[%clk 0:02:15.8]} 4... Qxd7 {[%clk 0:03:00.1]} 5. O-O
{[%clk 0:02:17.4]} 5... Nc6 {[%clk 0:03:01]} 6. c3 {[%clk 0:02:17.8]} 6... Nf6
{[%clk 0:03:01.7]} 7. d4 {[%clk 0:02:18.7]} 7... cxd4 {[%clk 0:02:49.7]} 8. cxd4
{[%clk 0:02:20.6]} 8... d5 {[%clk 0:02:51.2]} 9. e5 {[%clk 0:02:20.2]} 9... Ne4
{[%clk 0:02:52.2]} 10. Be3 {[%clk 0:02:20.9]} 10... e6 {[%clk 0:02:50.2]} 11.
Ne1 {[%clk 0:02:22]} 11... h6 {[%clk 0:02:47.7]} 12. f3 {[%clk 0:02:23]} 12...
Ng5 {[%clk 0:02:47.4]} 13. Nd3 {[%clk 0:02:24.6]} 13... Be7 {[%clk 0:02:45.6]}
14. Nc3 {[%clk 0:02:25.4]} 14... O-O {[%clk 0:02:43.6]} 15. Qd2 {[%clk
0:02:06.9]} 15... f6 {[%clk 0:02:42.6]} 16. Bxg5 {[%clk 0:02:07.4]} 16... hxg5
{[%clk 0:02:39.9]} 17. Qe3 {[%clk 0:02:00.5]} 17... Rae8 {[%clk 0:02:28.2]} 18.
Rad1 {[%clk 0:01:58.8]} 18... b6 {[%clk 0:02:22.9]} 19. Rfe1 {[%clk 0:01:55.7]}
19... Bd8 {[%clk 0:02:23.4]} 20. exf6 {[%clk 0:01:28.1]} 20... gxf6 {[%clk
0:02:20.9]} 21. f4 {[%clk 0:01:26.5]} 21... g4 {[%clk 0:02:13]} 22. Nf2 {[%clk
0:01:17]} 22... f5 {[%clk 0:02:09.6]} 23. Nd3 {[%clk 0:01:15.5]} 23... Bf6
{[%clk 0:02:09.6]} 24. Ne5 {[%clk 0:01:16.5]} 24... Nxe5 {[%clk 0:02:09.9]} 25.
fxe5 {[%clk 0:01:15.4]} 25... Bg7 {[%clk 0:01:55]} 26. h3 {[%clk 0:01:13]} 26...
gxh3 {[%clk 0:01:54.7]} 27. Qxh3 {[%clk 0:01:13.2]} 27... Qf7 {[%clk 0:01:55.2]}
28. Rd3 {[%clk 0:01:12]} 28... a6 {[%clk 0:01:53.6]} 29. Rg3 {[%clk 0:01:12.5]}
29... f4 {[%clk 0:01:35.4]} 30. Rg4 {[%clk 0:01:05.6]} 30... Qf5 {[%clk
0:01:30.3]} 31. Rf1 {[%clk 0:01:04]} 31... Qc2 {[%clk 0:01:27.4]} 32. Rgxf4
{[%clk 0:00:57]} 32... Rxf4 {[%clk 0:01:27]} 33. Rxf4 {[%clk 0:00:58.6]} 33...
Qc1+ {[%clk 0:01:27.4]} 34. Rf1 {[%clk 0:00:58.4]} 34... Qxb2 {[%clk 0:01:28.3]}
35. Qd3 {[%clk 0:00:49.1]} 35... Rc8 {[%clk 0:01:22]} 36. Ne2 {[%clk 0:00:43.4]}
36... Qc2 {[%clk 0:01:19.4]} 37. Qh3 {[%clk 0:00:37.1]} 37... Re8 {[%clk
0:01:00.7]} 38. Nf4 {[%clk 0:00:37.4]} 38... Qh7 {[%clk 0:01:00.8]} 39. Qg4
{[%clk 0:00:35.3]} 39... Qe4 {[%clk 0:00:59.7]} 40. Rd1 {[%clk 0:00:31.4]} 40...
Kf7 {[%clk 0:00:44.4]} 41. Qh5+ {[%clk 0:00:29.1]} 41... Ke7 {[%clk 0:00:44.8]}
42. Qg5+ {[%clk 0:00:26.2]} 42... Kf7 {[%clk 0:00:44.1]} 43. Nh5 {[%clk
0:00:20.9]} 43... Rg8 {[%clk 0:00:14.5]} 44. Rf1+ {[%clk 0:00:21]} 44... Ke8
{[%clk 0:00:16.1]} 45. Rf4 {[%clk 0:00:16.7]} 45... Qe1+ {[%clk 0:00:14.4]} 46.
Kh2 {[%clk 0:00:17.8]} 46... Kd7 {[%clk 0:00:14.6]} 47. Nxg7 {[%clk 0:00:16.4]}
47... Kc6 {[%clk 0:00:15.9]} 48. Qh6 {[%clk 0:00:15.6]} 48... Kb5 {[%clk
0:00:15.1]} 49. Rf3 {[%clk 0:00:14.6]} 49... Kc4 {[%clk 0:00:14.2]} 50. Nh5
{[%clk 0:00:12.7]} 50... Qh4+ {[%clk 0:00:13.9]} 51. Kg1 {[%clk 0:00:13.2]}
51... Qe1+ {[%clk 0:00:14.1]} 52. Rf1 {[%clk 0:00:14.3]} 52... Qe2 {[%clk
0:00:14.6]} 53. Qc1+ {[%clk 0:00:12.6]} 53... Kxd4 {[%clk 0:00:15.8]} 54. Nf4
{[%clk 0:00:11.1]} 54... Qe3+ {[%clk 0:00:07.5]} 55. Qxe3+ {[%clk 0:00:11.2]}
55... Kxe3 {[%clk 0:00:09.4]} 56. Nxe6 {[%clk 0:00:12.6]} 56... Re8 {[%clk
0:00:10.8]} 57. Nc7 {[%clk 0:00:12.8]} 57... Rxe5 {[%clk 0:00:09.2]} 58. Re1+
{[%clk 0:00:12.9]} 58... Kd4 {[%clk 0:00:10.6]} 59. Rxe5 {[%clk 0:00:14.4]}
59... Kxe5 {[%clk 0:00:12.5]} 60. Nxa6 {[%clk 0:00:15.8]} 60... d4 {[%clk
0:00:13.2]} 61. Kf2 {[%clk 0:00:16.8]} 61... Ke4 {[%clk 0:00:14.1]} 62. Ke2
{[%clk 0:00:18]} 1-0

[Event "*** Titled Tuesday 3|2 Blitz (Early)"]
[Site "Chess.com"]
[Date "2016.12.06"]
[Round "7"]
[White "joppie2"]
[Black "NewBornNow"]
[Result "0-1"]
[WhiteElo "2540"]
[BlackElo "2588"]
[TimeControl "180+2"]
[EndTime "12:34:20 PST"]
[Termination "NewBornNow won on time"]

1. e4 {[%clk 0:03:02]} 1... c5 {[%clk 0:03:00.7]} 2. Nf3 {[%clk 0:03:01.2]} 2...
d6 {[%clk 0:03:01.7]} 3. d4 {[%clk 0:03:02.2]} 3... cxd4 {[%clk 0:03:02.8]} 4.
Nxd4 {[%clk 0:03:03.2]} 4... Nf6 {[%clk 0:03:04.2]} 5. Nc3 {[%clk 0:03:04.9]}
5... a6 {[%clk 0:03:05.2]} 6. h3 {[%clk 0:03:05.4]} 6... e6 {[%clk 0:03:05.6]}
7. g4 {[%clk 0:03:05.9]} 7... Be7 {[%clk 0:03:06.9]} 8. g5 {[%clk 0:03:06.4]}
8... Nfd7 {[%clk 0:03:07.2]} 9. Be3 {[%clk 0:03:08.1]} 9... b5 {[%clk
0:03:08.2]} 10. a3 {[%clk 0:03:05.5]} 10... Bb7 {[%clk 0:03:09.2]} 11. Qd2
{[%clk 0:03:04.5]} 11... Nb6 {[%clk 0:03:10.2]} 12. O-O-O {[%clk 0:03:05.3]}
12... N8d7 {[%clk 0:03:11.1]} 13. Kb1 {[%clk 0:03:01.3]} 13... Rc8 {[%clk
0:03:11.2]} 14. h4 {[%clk 0:03:02.8]} 14... Ne5 {[%clk 0:03:11.2]} 15. Qe1
{[%clk 0:03:03]} 15... Nbc4 {[%clk 0:03:11.9]} 16. Bc1 {[%clk 0:03:03.7]} 16...
Qa5 {[%clk 0:03:11.5]} 17. f4 {[%clk 0:02:54.7]} 17... Nd7 {[%clk 0:03:01.4]}
18. Nb3 {[%clk 0:02:43.4]} 18... Nxa3+ {[%clk 0:02:59.2]} 19. Ka2 {[%clk
0:02:39.5]} 19... Qc7 {[%clk 0:02:57.7]} 20. bxa3 {[%clk 0:02:08.2]} 20... Qxc3
{[%clk 0:02:57.6]} 21. Bd3 {[%clk 0:02:08]} 21... d5 {[%clk 0:02:55.3]} 22. Qxc3
{[%clk 0:02:03.1]} 22... Rxc3 {[%clk 0:02:55]} 23. Bb2 {[%clk 0:02:04.7]} 23...
Rc8 {[%clk 0:02:51.2]} 24. Rhe1 {[%clk 0:01:44.4]} 24... dxe4 {[%clk 0:02:50.6]}
25. Bxe4 {[%clk 0:01:45.2]} 25... Bxe4 {[%clk 0:02:50.8]} 26. Rxe4 {[%clk
0:01:45.8]} 26... Rxc2 {[%clk 0:02:48.2]} 27. Kb1 {[%clk 0:01:47.1]} 27... Rc4
{[%clk 0:02:28.2]} 28. Rxc4 {[%clk 0:01:34.9]} 28... bxc4 {[%clk 0:02:29]} 29.
Na5 {[%clk 0:01:36.8]} 29... f6 {[%clk 0:02:25.4]} 30. Nxc4 {[%clk 0:01:32.6]}
30... Nc5 {[%clk 0:02:21.8]} 31. Nd6+ {[%clk 0:01:25.6]} 31... Bxd6 {[%clk
0:02:17.9]} 32. Rxd6 {[%clk 0:01:26.4]} 32... Ke7 {[%clk 0:02:03.2]} 33. Rc6
{[%clk 0:01:27.2]} 33... Nd3 {[%clk 0:02:04]} 34. Bc3 {[%clk 0:00:55.7]} 34...
Nxf4 {[%clk 0:01:54.5]} 35. Rc7+ {[%clk 0:00:43.6]} 35... Kd6 {[%clk 0:01:54.1]}
36. Rxg7 {[%clk 0:00:44.6]} 36... fxg5 {[%clk 0:01:48.5]} 37. Rxg5 {[%clk
0:00:41.9]} 37... Rb8+ {[%clk 0:01:41.1]} 38. Kc2 {[%clk 0:00:43.3]} 38... Rc8
{[%clk 0:01:39.5]} 39. Kd2 {[%clk 0:00:34.3]} 39... Rc4 {[%clk 0:01:09.4]} 40.
Be5+ {[%clk 0:00:26.8]} 40... Kc6 {[%clk 0:01:06.2]} 41. Rg4 {[%clk 0:00:28.1]}
41... Re4 {[%clk 0:01:05.6]} 42. Bb8 {[%clk 0:00:17.8]} 42... e5 {[%clk
0:00:40.7]} 43. Bxe5 {[%clk 0:00:18.3]} 43... Re2+ {[%clk 0:00:40.2]} 44. Kc3
{[%clk 0:00:12.7]} 44... Nd5+ {[%clk 0:00:37.9]} 45. Kd4 {[%clk 0:00:14.1]}
45... Rd2+ {[%clk 0:00:38.8]} 46. Ke4 {[%clk 0:00:14.7]} 46... Re2+ {[%clk
0:00:39.5]} 47. Kd4 {[%clk 0:00:12.7]} 47... Ra2 {[%clk 0:00:35.8]} 48. Rg3
{[%clk 0:00:13.6]} 48... Rd2+ {[%clk 0:00:30.8]} 49. Ke4 {[%clk 0:00:15]} 49...
Re2+ {[%clk 0:00:31.5]} 50. Kf5 {[%clk 0:00:15.3]} 50... Ne3+ {[%clk 0:00:30.1]}
51. Kf6 {[%clk 0:00:16.7]} 51... Kd5 {[%clk 0:00:29.2]} 52. Bb8 {[%clk
0:00:15.9]} 52... Rf2+ {[%clk 0:00:27.8]} 53. Kg5 {[%clk 0:00:15.2]} 53... Nf5
{[%clk 0:00:23.9]} 54. Rb3 {[%clk 0:00:10.4]} 54... Nd4 {[%clk 0:00:21.7]} 55.
Rd3 {[%clk 0:00:09.9]} 55... Rg2+ {[%clk 0:00:21.6]} 56. Kh5 {[%clk 0:00:08.1]}
56... Ke4 {[%clk 0:00:21.5]} 57. Rd1 {[%clk 0:00:09.3]} 57... Nf5 {[%clk
0:00:20.8]} 58. Re1+ {[%clk 0:00:09.9]} 58... Kd4 {[%clk 0:00:21.2]} 59. Be5+
{[%clk 0:00:10.9]} 59... Kd5 {[%clk 0:00:22]} 60. Bf6 {[%clk 0:00:12.4]} 60...
Rg6 {[%clk 0:00:20.4]} 61. Bg5 {[%clk 0:00:12.5]} 61... Nd4 {[%clk 0:00:21]} 62.
Re7 {[%clk 0:00:12.2]} 62... Rc6 {[%clk 0:00:18.6]} 63. Rxh7 {[%clk 0:00:12.8]}
63... Ne6 {[%clk 0:00:18.9]} 64. Rd7+ {[%clk 0:00:13]} 64... Ke5 {[%clk
0:00:20.1]} 65. Rd3 {[%clk 0:00:10.6]} 65... Rc4 {[%clk 0:00:17.4]} 66. Kh6
{[%clk 0:00:10.7]} 66... Rg4 {[%clk 0:00:16.9]} 67. Rf3 {[%clk 0:00:10.4]} 67...
Ke4 {[%clk 0:00:15.4]} 68. Rf1 {[%clk 0:00:10.9]} 68... Rg3 {[%clk 0:00:14.9]}
69. Be7 {[%clk 0:00:09.4]} 69... Nd4 {[%clk 0:00:13.2]} 70. Kh7 {[%clk
0:00:06.3]} 70... Nf5 {[%clk 0:00:12.8]} 0-1

[Event "*** Titled Tuesday 3|2 Blitz (Early)"]
[Site "Chess.com"]
[Date "2016.12.06"]
[Round "7"]
[White "Zaven_ChessMood"]
[Black "E-Shaposhnikov"]
[Result "1/2-1/2"]
[WhiteElo "2822"]
[BlackElo "2733"]
[TimeControl "180+2"]
[EndTime "12:34:37 PST"]
[Termination "Game drawn by stalemate"]

1. e4 {[%clk 0:03:01.9]} 1... c5 {[%clk 0:03:00.5]} 2. Nf3 {[%clk 0:03:02.4]}
2... e6 {[%clk 0:03:01.8]} 3. g3 {[%clk 0:03:02.4]} 3... Nc6 {[%clk 0:02:59.5]}
4. Bg2 {[%clk 0:03:03.6]} 4... Nf6 {[%clk 0:02:58.6]} 5. Qe2 {[%clk 0:03:04.4]}
5... e5 {[%clk 0:02:49]} 6. O-O {[%clk 0:03:04.6]} 6... Be7 {[%clk 0:02:47.3]}
7. c3 {[%clk 0:03:06]} 7... d6 {[%clk 0:02:48.7]} 8. d3 {[%clk 0:03:07.3]} 8...
O-O {[%clk 0:02:48.4]} 9. Bg5 {[%clk 0:03:05.5]} 9... Re8 {[%clk 0:02:49.2]} 10.
Nbd2 {[%clk 0:03:03.3]} 10... Be6 {[%clk 0:02:50.2]} 11. Nc4 {[%clk 0:03:00.7]}
11... b5 {[%clk 0:02:48.9]} 12. Ne3 {[%clk 0:03:01.8]} 12... a5 {[%clk
0:02:48.2]} 13. a4 {[%clk 0:02:57]} 13... b4 {[%clk 0:02:48.8]} 14. h3 {[%clk
0:02:54.7]} 14... h6 {[%clk 0:02:48.2]} 15. Bxf6 {[%clk 0:02:54.8]} 15... Bxf6
{[%clk 0:02:49.7]} 16. Nd2 {[%clk 0:02:52.1]} 16... g6 {[%clk 0:02:51]} 17. Ndc4
{[%clk 0:02:51.4]} 17... Bg7 {[%clk 0:02:51.3]} 18. Kh2 {[%clk 0:02:52]} 18...
Rb8 {[%clk 0:02:49.7]} 19. Qd2 {[%clk 0:02:49]} 19... Kh7 {[%clk 0:02:44.8]} 20.
f4 {[%clk 0:02:48.8]} 20... exf4 {[%clk 0:02:42.7]} 21. gxf4 {[%clk 0:02:49.7]}
21... bxc3 {[%clk 0:02:44.6]} 22. bxc3 {[%clk 0:02:50.5]} 22... g5 {[%clk
0:02:37.6]} 23. Nd5 {[%clk 0:02:44.7]} 23... gxf4 {[%clk 0:02:32.3]} 24. Rxf4
{[%clk 0:02:42.6]} 24... Ne5 {[%clk 0:02:21.4]} 25. Nce3 {[%clk 0:02:43.3]}
25... Ng6 {[%clk 0:02:18]} 26. Rf2 {[%clk 0:02:40.3]} 26... Qg5 {[%clk
0:02:18.9]} 27. Rg1 {[%clk 0:02:36.2]} 27... Be5+ {[%clk 0:02:02.6]} 28. Kh1
{[%clk 0:02:36.8]} 28... Rg8 {[%clk 0:02:00.1]} 29. Bf1 {[%clk 0:02:33.2]} 29...
Qh5 {[%clk 0:02:01.2]} 30. Ng4 {[%clk 0:02:29.5]} 30... Bxd5 {[%clk 0:01:53.7]}
31. exd5 {[%clk 0:02:28.2]} 31... Rbf8 {[%clk 0:01:48.8]} 32. d4 {[%clk
0:02:23.3]} 32... cxd4 {[%clk 0:01:49.9]} 33. cxd4 {[%clk 0:02:24.7]} 33... Bg7
{[%clk 0:01:51.4]} 34. Ne3 {[%clk 0:02:16.1]} 34... f5 {[%clk 0:01:44.1]} 35.
Qd3 {[%clk 0:02:11.3]} 35... f4 {[%clk 0:01:44.3]} 36. Nc4 {[%clk 0:02:04.3]}
36... Qxd5+ {[%clk 0:01:33.4]} 37. Rfg2 {[%clk 0:01:56.9]} 37... Bh8 {[%clk
0:01:18.2]} 38. Kh2 {[%clk 0:01:50.2]} 38... Rf6 {[%clk 0:01:06.5]} 39. Rg4
{[%clk 0:01:46.3]} 39... f3 {[%clk 0:01:01.1]} 40. Ne3 {[%clk 0:01:41.7]} 40...
Qe6 {[%clk 0:00:56.5]} 41. R1g3 {[%clk 0:01:37.5]} 41... Rg7 {[%clk 0:00:52.7]}
42. h4 {[%clk 0:01:30.2]} 42... Kg8 {[%clk 0:00:49.1]} 43. Qc4 {[%clk
0:01:14.8]} 43... Ne7 {[%clk 0:00:36.9]} 44. Qxe6+ {[%clk 0:01:13]} 44... Rxe6
{[%clk 0:00:38.8]} 45. Bc4 {[%clk 0:01:11.7]} 45... d5 {[%clk 0:00:40.3]} 46.
Nxd5 {[%clk 0:01:11.2]} 46... Kh7 {[%clk 0:00:39]} 47. Bd3+ {[%clk 0:01:08.6]}
47... Kg8 {[%clk 0:00:39.5]} 48. Nf4 {[%clk 0:01:05.8]} 48... Re3 {[%clk
0:00:40.3]} 49. Rxg7+ {[%clk 0:00:58.8]} 49... Bxg7 {[%clk 0:00:41.2]} 50. d5
{[%clk 0:00:51.4]} 50... Kf7 {[%clk 0:00:41.8]} 51. d6 {[%clk 0:00:50]} 51...
Be5 {[%clk 0:00:39.5]} 52. d7 {[%clk 0:00:43]} 52... Bc7 {[%clk 0:00:37.2]} 53.
Bc4+ {[%clk 0:00:38.2]} 53... Kf6 {[%clk 0:00:35.4]} 54. Kh3 {[%clk 0:00:38.8]}
54... Re4 {[%clk 0:00:29.5]} 55. Nh5+ {[%clk 0:00:26.4]} 55... Ke5 {[%clk
0:00:25.9]} 56. Rg4 {[%clk 0:00:22.2]} 56... Rxg4 {[%clk 0:00:21.6]} 57. Kxg4
{[%clk 0:00:23.6]} 57... f2 {[%clk 0:00:20.9]} 58. Kf3 {[%clk 0:00:22.9]} 58...
Bb6 {[%clk 0:00:18.1]} 59. Ng3 {[%clk 0:00:20.7]} 59... Kd6 {[%clk 0:00:19.4]}
60. Bb5 {[%clk 0:00:21.4]} 60... Nc6 {[%clk 0:00:19.1]} 61. Ne4+ {[%clk
0:00:22.2]} 61... Kxd7 {[%clk 0:00:19.6]} 62. Nxf2 {[%clk 0:00:23.3]} 62... Bxf2
{[%clk 0:00:19.5]} 63. Kxf2 {[%clk 0:00:24.6]} 63... Kd6 {[%clk 0:00:21.2]} 64.
Ke3 {[%clk 0:00:25.7]} 64... Ne5 {[%clk 0:00:20.5]} 65. Kf4 {[%clk 0:00:26.7]}
65... Ke6 {[%clk 0:00:19.7]} 66. h5 {[%clk 0:00:27]} 66... Kf6 {[%clk
0:00:15.4]} 67. Be2 {[%clk 0:00:27.1]} 67... Nd7 {[%clk 0:00:15.8]} 68. Bb5
{[%clk 0:00:26.9]} 68... Nc5 {[%clk 0:00:17.4]} 69. Bc6 {[%clk 0:00:26.5]} 69...
Ke6 {[%clk 0:00:18.6]} 70. Ke3 {[%clk 0:00:26.7]} 70... Ke5 {[%clk 0:00:19.8]}
71. Bb5 {[%clk 0:00:22.1]} 71... Nxa4 {[%clk 0:00:17]} 72. Bxa4 {[%clk
0:00:22.6]} 72... Kf6 {[%clk 0:00:18.9]} 73. Kf4 {[%clk 0:00:23.4]} 73... Kg7
{[%clk 0:00:20.8]} 74. Ke5 {[%clk 0:00:24.3]} 74... Kh8 {[%clk 0:00:22.7]} 75.
Kd5 {[%clk 0:00:25]} 75... Kh7 {[%clk 0:00:24.1]} 76. Kc5 {[%clk 0:00:26.4]}
76... Kh8 {[%clk 0:00:25.7]} 77. Kb5 {[%clk 0:00:28.1]} 77... Kh7 {[%clk
0:00:27.3]} 78. Kxa5 {[%clk 0:00:29.5]} 78... Kh8 {[%clk 0:00:28.9]} 79. Kb5
{[%clk 0:00:31.2]} 79... Kh7 {[%clk 0:00:29.8]} 80. Kc5 {[%clk 0:00:32.9]} 80...
Kh8 {[%clk 0:00:31.4]} 81. Kd6 {[%clk 0:00:34.6]} 81... Kh7 {[%clk 0:00:30.3]}
82. Ke6 {[%clk 0:00:36.2]} 82... Kh8 {[%clk 0:00:31.5]} 83. Kf6 {[%clk
0:00:37.7]} 83... Kh7 {[%clk 0:00:32.8]} 84. Bb3 {[%clk 0:00:38.6]} 84... Kh8
{[%clk 0:00:34]} 85. Kf7 {[%clk 0:00:39.8]} 85... Kh7 {[%clk 0:00:35.3]} 86.
Bc2+ {[%clk 0:00:41.3]} 86... Kh8 {[%clk 0:00:36.4]} 87. Kg6 {[%clk 0:00:43]}
87... Kg8 {[%clk 0:00:37.4]} 88. Kxh6 {[%clk 0:00:44.9]} 88... Kh8 {[%clk
0:00:38.7]} 89. Kg6 {[%clk 0:00:46.3]} 89... Kg8 {[%clk 0:00:39.9]} 90. h6
{[%clk 0:00:47.8]} 90... Kh8 {[%clk 0:00:41.2]} 91. h7 {[%clk 0:00:49.3]}
1/2-1/2

[Event "*** Titled Tuesday 3|2 Blitz (Early)"]
[Site "Chess.com"]
[Date "2016.12.06"]
[Round "7"]
[White "Matibar"]
[Black "Iball95"]
[Result "1-0"]
[WhiteElo "2567"]
[BlackElo "2481"]
[TimeControl "180+2"]
[EndTime "12:34:44 PST"]
[Termination "Matibar won by resignation"]

1. d4 {[%clk 0:03:02]} 1... d5 {[%clk 0:03:00.2]} 2. Nf3 {[%clk 0:03:03.9]} 2...
Nf6 {[%clk 0:03:00.8]} 3. Bf4 {[%clk 0:03:02.9]} 3... c5 {[%clk 0:03:00.8]} 4.
e3 {[%clk 0:03:01.6]} 4... Nc6 {[%clk 0:02:59.4]} 5. c3 {[%clk 0:02:59.6]} 5...
Qb6 {[%clk 0:02:58.6]} 6. Qb3 {[%clk 0:02:59.3]} 6... c4 {[%clk 0:02:57.6]} 7.
Qc2 {[%clk 0:02:50.1]} 7... Bf5 {[%clk 0:02:56.5]} 8. Qc1 {[%clk 0:02:51]} 8...
e6 {[%clk 0:02:52.9]} 9. Be2 {[%clk 0:02:52.2]} 9... Nh5 {[%clk 0:02:40.6]} 10.
Bg3 {[%clk 0:02:53]} 10... Nxg3 {[%clk 0:02:40.6]} 11. hxg3 {[%clk 0:02:54.9]}
11... h6 {[%clk 0:02:39.8]} 12. Nbd2 {[%clk 0:02:52.1]} 12... Be7 {[%clk
0:02:38.7]} 13. b3 {[%clk 0:02:52.7]} 13... cxb3 {[%clk 0:02:38.4]} 14. axb3
{[%clk 0:02:53.6]} 14... O-O {[%clk 0:02:39.6]} 15. O-O {[%clk 0:02:54.6]} 15...
Rfc8 {[%clk 0:02:38.6]} 16. Qb2 {[%clk 0:02:52.9]} 16... a6 {[%clk 0:02:38.5]}
17. Rfc1 {[%clk 0:02:52.9]} 17... Qd8 {[%clk 0:02:34.1]} 18. Ne1 {[%clk
0:02:52.9]} 18... Rc7 {[%clk 0:02:32.4]} 19. Bd3 {[%clk 0:02:54.2]} 19... Bxd3
{[%clk 0:02:30.6]} 20. Nxd3 {[%clk 0:02:56.1]} 20... Rac8 {[%clk 0:02:31.5]} 21.
c4 {[%clk 0:02:57.5]} 21... Nb4 {[%clk 0:02:25.4]} 22. Nxb4 {[%clk 0:02:57.5]}
22... Bxb4 {[%clk 0:02:27.3]} 23. c5 {[%clk 0:02:59.4]} 23... Bxd2 {[%clk
0:02:22.3]} 24. Qxd2 {[%clk 0:03:01.3]} 24... Qd7 {[%clk 0:02:19.4]} 25. b4
{[%clk 0:02:55.1]} 25... Rc6 {[%clk 0:02:15.7]} 26. Ra5 {[%clk 0:02:55.2]} 26...
g6 {[%clk 0:02:13.2]} 27. b5 {[%clk 0:02:49.4]} 27... axb5 {[%clk 0:02:15.1]}
28. Rxb5 {[%clk 0:02:51]} 28... Ra6 {[%clk 0:01:50.9]} 29. Rcb1 {[%clk
0:02:45.6]} 29... Rc7 {[%clk 0:01:51.3]} 30. Rb6 {[%clk 0:02:42.6]} 30... Rxb6
{[%clk 0:01:45.5]} 31. Rxb6 {[%clk 0:02:44.5]} 31... Rc6 {[%clk 0:01:46.1]} 32.
Rb1 {[%clk 0:02:39.6]} 32... Kg7 {[%clk 0:01:28.4]} 33. Qb4 {[%clk 0:02:40.2]}
33... Rc7 {[%clk 0:01:29.6]} 34. g4 {[%clk 0:02:36.9]} 34... Qc6 {[%clk
0:01:26.7]} 35. f4 {[%clk 0:02:34.6]} 35... Qa6 {[%clk 0:01:25]} 36. Kf2 {[%clk
0:02:34.7]} 36... Qd3 {[%clk 0:01:22.1]} 37. Rb2 {[%clk 0:02:32.8]} 37... Qd1
{[%clk 0:01:23]} 38. Qb6 {[%clk 0:02:31.5]} 38... Rd7 {[%clk 0:01:16.5]} 39. Qb5
{[%clk 0:02:32.5]} 39... Rc7 {[%clk 0:01:14.8]} 40. Qe2 {[%clk 0:02:33.6]} 40...
Qc1 {[%clk 0:01:12.3]} 41. Qd2 {[%clk 0:02:34.1]} 41... Qa1 {[%clk 0:01:12.9]}
42. Kg3 {[%clk 0:02:29.5]} 42... Qh1 {[%clk 0:01:10.1]} 43. Rc2 {[%clk
0:02:21.2]} 43... g5 {[%clk 0:01:02.5]} 44. Rc1 {[%clk 0:02:21.2]} 44... Qh4+
{[%clk 0:01:02.8]} 45. Kf3 {[%clk 0:02:22.8]} 45... h5 {[%clk 0:01:03.9]} 46.
gxh5 {[%clk 0:02:21.2]} 46... g4+ {[%clk 0:01:00.3]} 47. Ke2 {[%clk 0:02:21.6]}
47... Qxh5 {[%clk 0:01:01.6]} 48. Qe1 {[%clk 0:02:10]} 48... g3+ {[%clk
0:00:55.1]} 49. Kd2 {[%clk 0:02:09.9]} 49... Qg6 {[%clk 0:00:55.3]} 50. Rc3
{[%clk 0:01:59]} 50... Qg4 {[%clk 0:00:32.5]} 51. Qe2 {[%clk 0:01:59.5]} 51...
Qg6 {[%clk 0:00:31.9]} 52. Qe1 {[%clk 0:01:37.1]} 52... Qg4 {[%clk 0:00:32.2]}
53. Qd1 {[%clk 0:01:38.3]} 53... Qg6 {[%clk 0:00:27.8]} 54. Qf3 {[%clk
0:01:17.3]} 54... Rc6 {[%clk 0:00:26.6]} 55. e4 {[%clk 0:01:18.6]} 55... dxe4
{[%clk 0:00:21.3]} 56. Qxg3 {[%clk 0:01:19.6]} 56... b6 {[%clk 0:00:17.7]} 57.
Qxg6+ {[%clk 0:01:11.1]} 57... Kxg6 {[%clk 0:00:18.2]} 58. g4 {[%clk 0:01:12.7]}
58... bxc5 {[%clk 0:00:18.5]} 59. dxc5 {[%clk 0:01:13.6]} 59... f5 {[%clk
0:00:16.3]} 60. g5 {[%clk 0:01:14.9]} 60... e5 {[%clk 0:00:17.7]} 61. Ke3 {[%clk
0:01:15.7]} 61... Kh5 {[%clk 0:00:14]} 62. fxe5 {[%clk 0:01:14.1]} 62... Kxg5
{[%clk 0:00:15.9]} 63. Kd4 {[%clk 0:01:15.5]} 63... Kf4 {[%clk 0:00:07.1]} 64.
Kd5 {[%clk 0:01:15.8]} 64... Rc8 {[%clk 0:00:08.1]} 65. e6 {[%clk 0:01:17.2]}
65... e3 {[%clk 0:00:09.6]} 66. e7 {[%clk 0:01:17]} 66... e2 {[%clk 0:00:10.6]}
67. Rc1 {[%clk 0:01:17.6]} 67... Ke3 {[%clk 0:00:11.8]} 68. Kd6 {[%clk
0:01:18.9]} 68... f4 {[%clk 0:00:11.2]} 69. Kd7 {[%clk 0:01:20.2]} 69... Rh8
{[%clk 0:00:12.4]} 70. c6 {[%clk 0:01:21.1]} 70... f3 {[%clk 0:00:13]} 71. c7
{[%clk 0:01:21.2]} 71... f2 {[%clk 0:00:14.5]} 72. c8=Q {[%clk 0:01:21.8]} 72...
Rxc8 {[%clk 0:00:15.5]} 73. Rxc8 {[%clk 0:01:23.1]} 73... f1=Q {[%clk 0:00:17]}
74. e8=Q+ {[%clk 0:01:24.1]} 74... Kf2 {[%clk 0:00:16.9]} 75. Qf8+ {[%clk
0:01:23.5]} 75... Kg1 {[%clk 0:00:17.8]} 76. Qc5+ {[%clk 0:01:23.1]} 76... Qf2
{[%clk 0:00:14.6]} 77. Rg8+ {[%clk 0:01:15.5]} 77... Kf1 {[%clk 0:00:15.5]} 78.
Qc4 {[%clk 0:01:13.7]} 78... Qf5+ {[%clk 0:00:11]} 79. Kd6 {[%clk 0:01:13.8]}
79... Qf6+ {[%clk 0:00:08.8]} 80. Kc7 {[%clk 0:01:14.1]} 80... Kf2 {[%clk
0:00:09.8]} 81. Qc5+ {[%clk 0:01:13]} 81... Ke1 {[%clk 0:00:04.9]} 82. Rg1+
{[%clk 0:01:11.6]} 82... Kd2 {[%clk 0:00:06.2]} 83. Qc1+ {[%clk 0:01:12.6]}
83... Kd3 {[%clk 0:00:06.7]} 84. Rg3+ {[%clk 0:01:14.3]} 84... Ke4 {[%clk
0:00:08.1]} 85. Re3+ {[%clk 0:01:06.2]} 85... Kd5 {[%clk 0:00:02.8]} 86. Rd3+
{[%clk 0:01:01.4]} 86... Ke4 {[%clk 0:00:02.6]} 87. Qe3+ {[%clk 0:01:01.9]}
87... Kf5 {[%clk 0:00:04.1]} 88. Qf3+ {[%clk 0:01:03.2]} 88... Kg6 {[%clk
0:00:05.4]} 89. Qxf6+ {[%clk 0:01:04.1]} 89... Kxf6 {[%clk 0:00:07.3]} 90. Re3
{[%clk 0:01:05.5]} 1-0